fUSD/lending_fUSD_20250426
["ID","MTS","AMOUNT","RATE_DAILY","PERIOD"]
[359097843,1745706639515,-400.0,0.00019779,2]
[359097845,1745706639525,-400.0,0.00019779,2]
[359097847,1745706639534,-400.0,0.00019779,2]
[359097849,1745706639543,-400.0,0.00019779,2]
[359097851,1745706639552,-530.66335049,0.00019779,2]
[359097853,1745706639562,-400.0,0.00019779,2]
[359097855,1745706639571,-652.95,0.00019779,2]
[359097857,1745706639580,-653.8,0.00019779,2]
[359097859,1745706639590,-434.18,0.00019779,2]
[359097861,1745706639599,-400.0,0.00019779,2]
[359097863,1745706639609,-400.0,0.00019779,2]
[359097865,1745706639618,-454.71,0.00019779,2]
[359097867,1745706639627,-400.0,0.00019779,2]
[359097869,1745706639637,-400.0,0.00019779,2]
[359097871,1745706639647,-400.0,0.00019779,2]
[359097873,1745706639657,-400.0,0.00019779,2]
[359097875,1745706639666,-400.0,0.00019779,2]
[359097877,1745706639676,-400.0,0.00019779,2]
[359097879,1745706639686,-400.0,0.00019779,2]
[359097881,1745706639695,-400.0,0.00019779,2]
[359097883,1745706639707,-400.0,0.00019779,2]
[359097885,1745706639716,-400.0,0.00019779,2]
[359097887,1745706639725,-156.34320295,0.00019779,2]
[359097889,1745706639735,-425.52,0.00019779,2]
[359097891,1745706639744,-400.0,0.00019779,2]
[359097893,1745706639754,-526.26,0.00019779,2]
[359097895,1745706639763,-400.0,0.00019779,2]
[359097897,1745706639773,-400.0,0.00019779,2]
[359097899,1745706639782,-400.0,0.00019779,2]
[359097901,1745706639792,-510.76,0.00019779,2]
[359097903,1745706639802,-400.0,0.00019779,2]
[359097905,1745706639812,-400.0,0.00019779,2]
[359097907,1745706639821,-400.0,0.00019779,2]
[359097909,1745706639830,-643.82,0.00019779,2]
[359097911,1745706639840,-400.0,0.00019779,2]
[359097913,1745706639849,-414.24,0.00019779,2]
[359097915,1745706639860,-202.565733,0.00019779,2]
[359097917,1745706639870,-400.0,0.00019779,2]
[359097919,1745706639879,-166.423983,0.00019779,2]
[359097921,1745706639889,-400.0,0.00019779,2]
[359097923,1745706639899,-400.0,0.00019779,2]
[359097925,1745706639911,-8260.114003,0.00019779,2]
[359097927,1745706639920,-400.0,0.00019779,2]
[359097929,1745706639930,-2011.41,0.00019779,2]
[359097931,1745706639940,-400.0,0.00019779,2]
[359097933,1745706639951,-400.0,0.00019779,2]
[359097935,1745706639961,-207.751237,0.00019779,2]
[359097937,1745706639971,-400.0,0.00019779,2]
[359097939,1745706639982,-400.0,0.00019779,2]
[359097941,1745706639992,-400.0,0.00019779,2]
[359097943,1745706640002,-400.0,0.00019779,2]
[359097945,1745706640011,-400.0,0.00019779,2]
[359097947,1745706640021,-400.0,0.00019779,2]
[359097950,1745706640030,-179.49834234,0.00019779,2]
[359097952,1745706640040,-632.19,0.00019779,2]
[359097954,1745706640049,-400.0,0.00019779,2]
[359097956,1745706640059,-400.0,0.00019779,2]
[359097958,1745706640070,-428.73,0.00019779,2]
[359097960,1745706640080,-795.6,0.00019779,2]
[359097962,1745706640089,-400.0,0.00019779,2]
[359097964,1745706640099,-490.94,0.00019779,2]
[359097966,1745706640108,-400.0,0.00019779,2]
[359097968,1745706640117,-400.0,0.00019779,2]
[359097970,1745706640127,-400.0,0.00019779,2]
[359097972,1745706640137,-409.99,0.00019779,2]
[359097974,1745706640146,-400.0,0.00019779,2]
[359097976,1745706640156,-400.0,0.00019779,2]
[359097979,1745706640165,-400.0,0.00019779,2]
[359097981,1745706640175,-400.0,0.00019779,2]
[359097984,1745706640185,-400.0,0.00019779,2]
[359097987,1745706640195,-2369.5,0.00019779,2]
[359097990,1745706640205,-599.17,0.00019779,2]
[359097992,1745706640214,-400.0,0.00019779,2]
[359097994,1745706640223,-400.0,0.00019779,2]
[359097996,1745706640234,-400.0,0.00019779,2]
[359097998,1745706640244,-400.0,0.00019779,2]
[359098000,1745706640253,-534.28,0.00019779,2]
[359098002,1745706640263,-456.36,0.00019779,2]
[359098004,1745706640273,-405.51,0.00019779,2]
[359098006,1745706640282,-400.0,0.00019779,2]
[359098008,1745706640291,-542.99,0.00019779,2]
[359098010,1745706640301,-441.25,0.00019779,2]
[359098012,1745706640310,-400.0,0.00019779,2]
[359098014,1745706640320,-400.0,0.00019779,2]
[359098016,1745706640331,-402.81,0.00019779,2]
[359098018,1745706640340,-400.0,0.00019779,2]
[359098020,1745706640350,-400.0,0.00019779,2]
[359098022,1745706640359,-581.2,0.00019779,2]
[359098024,1745706640368,-400.0,0.00019779,2]
[359098026,1745706640378,-811.57,0.00019779,2]
[359098028,1745706640387,-628.4,0.00019779,2]
[359098030,1745706640397,-400.0,0.00019779,2]
[359098032,1745706640407,-400.0,0.00019779,2]
[359098034,1745706640417,-431.87,0.00019779,2]
[359098036,1745706640426,-400.0,0.00019779,2]
[359098038,1745706640436,-400.0,0.00019779,2]
[359098040,1745706640446,-431.76,0.00019779,2]
[359098042,1745706640455,-400.0,0.00019779,2]
[359098044,1745706640465,-400.0,0.00019779,2]
[359098046,1745706640474,-400.0,0.00019779,2]
[359098048,1745706640483,-414.88,0.00019779,2]
[359098050,1745706640493,-400.0,0.00019779,2]
[359098052,1745706640502,-592.11,0.00019779,2]
[359098054,1745706640511,-96404.35,0.00019779,2]
[359098056,1745706640520,-539.07,0.00019779,2]
[359098058,1745706640530,-400.0,0.00019779,2]
[359098060,1745706640539,-400.0,0.00019779,2]
[359098062,1745706640549,-400.0,0.00019779,2]
[359098064,1745706640558,-400.0,0.00019779,2]
[359098066,1745706640568,-653.86,0.00019779,2]
[359098068,1745706640577,-400.0,0.00019779,2]
[359098070,1745706640588,-407.8,0.00019779,2]
[359098073,1745706640597,-785.71,0.00019779,2]
[359098074,1745706640606,-400.0,0.00019779,2]
[359098077,1745706640617,-520.68,0.00019779,2]
[359098079,1745706640627,-500.0,0.00019779,2]
[359098081,1745706640637,-1436.38,0.00019779,2]
[359098082,1745706640646,-437.84,0.00019779,2]
[359098084,1745706640656,-400.0,0.00019779,2]
[359098086,1745706640665,-526.02,0.00019779,2]
[359098088,1745706640675,-411.98,0.00019779,2]
[359098090,1745706640685,-881.52,0.00019779,2]
[359098092,1745706640694,-500.0,0.00019779,2]
[359098094,1745706640703,-400.0,0.00019779,2]
[359098096,1745706640713,-400.0,0.00019779,2]
[359098098,1745706640723,-400.0,0.00019779,2]
[359098100,1745706640733,-400.0,0.00019779,2]
[359098102,1745706640744,-569.42,0.00019779,2]
[359098104,1745706640753,-500.0,0.00019779,2]
[359098106,1745706640762,-400.0,0.00019779,2]
[359098108,1745706640772,-400.0,0.00019779,2]
[359098110,1745706640783,-400.0,0.00019779,2]
[359098113,1745706640792,-626.13,0.00019779,2]
[359098114,1745706640802,-500.0,0.00019779,2]
[359098116,1745706640812,-458.895223,0.00019779,2]
[359098118,1745706640821,-400.0,0.00019779,2]
[359098120,1745706640830,-400.0,0.00019779,2]
[359098122,1745706640839,-670.9,0.00019779,2]
[359098124,1745706640848,-462.39,0.00019779,2]
[359098126,1745706640858,-400.0,0.00019779,2]
[359098128,1745706640868,-400.0,0.00019779,2]
[359098130,1745706640877,-564.46,0.00019779,2]
[359098132,1745706640887,-574.81,0.00019779,2]
[359098134,1745706640896,-411.11,0.00019779,2]
[359098136,1745706640908,-550.09,0.00019779,2]
[359098138,1745706640918,-504.45,0.00019779,2]
[359098140,1745706640928,-400.0,0.00019779,2]
[359098142,1745706640939,-616.5,0.00019779,2]
[359098144,1745706640948,-817.03,0.00019779,2]
[359098146,1745706640958,-400.0,0.00019779,2]
[359098148,1745706640967,-400.0,0.00019779,2]
[359098150,1745706640977,-5945.96,0.00019779,2]
[359098152,1745706640988,-400.0,0.00019779,2]
[359098154,1745706640999,-400.0,0.00019779,2]
[359098156,1745706641008,-787.43,0.00019779,2]
[359098158,1745706641018,-545.87,0.00019779,2]
[359098160,1745706641028,-400.0,0.00019779,2]
[359098162,1745706641038,-533.0,0.00019779,2]
[359098164,1745706641047,-400.0,0.00019779,2]
[359098166,1745706641057,-400.0,0.00019779,2]
[359098168,1745706641066,-400.0,0.00019779,2]
[359098170,1745706641076,-400.0,0.00019779,2]
[359098173,1745706641091,-400.0,0.00019779,2]
[359098175,1745706641101,-510.36,0.00019779,2]
[359098177,1745706641111,-400.0,0.00019779,2]
[359098179,1745706641121,-500.0,0.00019779,2]
[359098181,1745706641130,-552.39,0.00019779,2]
[359098183,1745706641139,-1227.56,0.00019779,2]
[359098185,1745706641148,-400.0,0.00019779,2]
[359098187,1745706641158,-417.48,0.00019779,2]
[359098189,1745706641167,-590.34,0.00019779,2]
[359098190,1745706641176,-500.03,0.00019779,2]
[359098193,1745706641186,-788.55,0.00019779,2]
[359098194,1745706641196,-500.0,0.00019779,2]
[359098197,1745706641205,-415.48,0.00019779,2]
[359098199,1745706641214,-400.0,0.00019779,2]
[359098201,1745706641224,-400.0,0.00019779,2]
[359098203,1745706641233,-786.55,0.00019779,2]
[359098204,1745706641242,-400.0,0.00019779,2]
[359098206,1745706641252,-400.0,0.00019779,2]
[359098208,1745706641261,-400.0,0.00019779,2]
[359098210,1745706641271,-400.0,0.00019779,2]
[359098212,1745706641280,-407.95,0.00019779,2]
[359098214,1745706641289,-400.0,0.00019779,2]
[359098216,1745706641298,-400.0,0.00019779,2]
[359098218,1745706641308,-2565.36,0.00019779,2]
[359098220,1745706641318,-400.0,0.00019779,2]
[359098222,1745706641327,-409.01,0.00019779,2]
[359098224,1745706641337,-400.0,0.00019779,2]
[359098226,1745706641346,-400.0,0.00019779,2]
[359098228,1745706641356,-400.0,0.00019779,2]
[359098230,1745706641365,-933.06,0.00019779,2]
[359098232,1745706641375,-400.0,0.00019779,2]
[359098233,1745706641385,-717.33,0.00019779,2]
[359098234,1745706641395,-400.0,0.0001978,2]
[359098235,1745706641404,-616.0,0.0001978,2]
[359098236,1745706641414,-200.0,0.0001978,2]
[359098237,1745706641424,-400.0,0.0001978,2]
[359098238,1745706641433,-400.0,0.0001978,2]
[359098239,1745706641443,-664.7,0.0001978,2]
[359098240,1745706641454,-513.34,0.0001978,2]
[359098241,1745706641463,-400.0,0.0001978,2]
[359098242,1745706641473,-400.0,0.0001978,2]
[359098243,1745706641483,-549.72608562,0.0001978,2]
[359098244,1745706641493,-400.0,0.0001978,2]
[359098245,1745706641502,-400.0,0.0001978,2]
[359098246,1745706641512,-500.0,0.0001978,2]
[359098247,1745706641522,-400.0,0.0001978,2]
[359098248,1745706641531,-400.0,0.0001978,2]
[359098249,1745706641540,-536.57836525,0.0001978,2]
[359098250,1745706641549,-400.0,0.0001978,2]
[359098251,1745706641558,-500.0,0.0001978,2]
[359098253,1745706641567,-400.0,0.0001978,2]
[359098255,1745706641576,-500.0,0.0001978,2]
[359098257,1745706641586,-507.19374381,0.0001978,2]
[359098259,1745706641595,-250.0,0.0001978,2]
[359098261,1745706641605,-400.0,0.0001978,2]
[359098263,1745706641613,-400.0,0.0001978,2]
[359098265,1745706641623,-400.0,0.0001978,2]
[359098267,1745706641633,-286.41314099,0.0001978,2]
[359098269,1745706641643,-400.0,0.0001978,2]
[359098271,1745706641652,-500.0,0.0001978,2]
[359098273,1745706641662,-400.0,0.0001978,2]
[359098275,1745706641671,-500.0,0.0001978,2]
[359098277,1745706641681,-400.0,0.0001978,2]
[359098279,1745706641690,-400.0,0.0001978,2]
[359098281,1745706641700,-534.30097685,0.0001978,2]
[359098283,1745706641709,-400.0,0.0001978,2]
[359098284,1745706641719,-500.0,0.0001978,2]
[359098286,1745706641729,-400.0,0.0001978,2]
[359098288,1745706641738,-518.69340176,0.0001978,2]
[359098290,1745706641748,-500.0,0.0001978,2]
[359098293,1745706641758,-400.0,0.0001978,2]
[359098295,1745706641767,-400.0,0.0001978,2]
[359098297,1745706641778,-400.0,0.0001978,2]
[359098299,1745706641787,-400.0,0.0001978,2]
[359098301,1745706641796,-500.0,0.0001978,2]
[359098303,1745706641805,-400.0,0.0001978,2]
[359098304,1745706641815,-400.0,0.0001978,2]
[359098306,1745706641825,-500.0,0.0001978,2]
[359098308,1745706641834,-400.0,0.0001978,2]
[359098310,1745706641843,-400.0,0.0001978,2]
[359098312,1745706641853,-500.0,0.0001978,2]
[359098314,1745706641863,-500.0,0.0001978,2]
[359098316,1745706641872,-400.0,0.0001978,2]
[359098318,1745706641882,-500.0,0.0001978,2]
[359098320,1745706641891,-400.0,0.0001978,2]
[359098322,1745706641901,-500.0,0.0001978,2]
[359098324,1745706641913,-500.0,0.0001978,2]
[359098327,1745706641923,-400.0,0.0001978,2]
[359098328,1745706641933,-500.0,0.0001978,2]
[359098330,1745706641943,-500.0,0.0001978,2]
[359098332,1745706641955,-500.0,0.0001978,2]
[359098334,1745706641966,-400.0,0.0001978,2]
[359098336,1745706641975,-500.0,0.0001978,2]
[359098338,1745706641988,-400.0,0.0001978,2]
[359098341,1745706641999,-500.0,0.0001978,2]
[359098343,1745706642008,-400.0,0.0001978,2]
[359098345,1745706642018,-505.57630559,0.0001978,2]
[359098347,1745706642027,-555.99,0.0001978,2]
[359098349,1745706642037,-400.0,0.0001978,2]
[359098351,1745706642046,-400.0,0.0001978,2]
[359098353,1745706642055,-400.0,0.0001978,2]
[359098355,1745706642065,-906.86,0.0001978,2]
[359098356,1745706642075,-400.0,0.0001978,2]
[359098358,1745706642085,-400.0,0.0001978,2]
[359098360,1745706642096,-400.0,0.0001978,2]
[359098362,1745706642105,-400.0,0.0001978,2]
[359098364,1745706642115,-400.0,0.0001978,2]
[359098366,1745706642125,-400.0,0.0001978,2]
[359098368,1745706642134,-469.43,0.0001978,2]
[359098370,1745706642144,-400.0,0.0001978,2]
[359098372,1745706642154,-400.0,0.0001978,2]
[359098374,1745706642163,-400.0,0.0001978,2]
[359098376,1745706642174,-400.0,0.0001978,2]
[359098378,1745706642183,-400.0,0.0001978,2]
[359098380,1745706642193,-400.0,0.0001978,2]
[359098382,1745706642203,-500.0,0.0001978,2]
[359098384,1745706642212,-400.0,0.0001978,2]
[359098386,1745706642223,-414.19996969,0.0001978,2]
[359098388,1745706642236,-400.0,0.0001978,2]
[359098390,1745706642246,-500.0,0.0001978,2]
[359098392,1745706642258,-400.0,0.0001978,2]
[359098394,1745706642268,-400.0,0.0001978,2]
[359098396,1745706642279,-400.0,0.0001978,2]
[359098399,1745706642289,-400.0,0.0001978,2]
[359098400,1745706642298,-400.0,0.0001978,2]
[359098402,1745706642309,-400.0,0.0001978,2]
[359098404,1745706642319,-400.0,0.0001978,2]
[359098406,1745706642329,-400.96,0.0001978,2]
[359098409,1745706642339,-400.0,0.0001978,2]
[359098410,1745706642348,-400.0,0.0001978,2]
[359098411,1745706642358,-500.0,0.0001978,2]
[359098412,1745706642367,-721.84,0.0001978,2]
[359098413,1745706642377,-400.0,0.0001978,2]
[359098414,1745706642387,-400.0,0.0001978,2]
[359098415,1745706642396,-400.0,0.0001978,2]
[359098417,1745706642405,-400.0,0.0001978,2]
[359098419,1745706642415,-400.0,0.0001978,2]
[359098421,1745706642425,-400.0,0.0001978,2]
[359098423,1745706642435,-400.0,0.0001978,2]
[359098425,1745706642446,-400.0,0.0001978,2]
[359098427,1745706642456,-400.0,0.0001978,2]
[359098429,1745706642465,-519.95197459,0.0001978,2]
[359098431,1745706642475,-400.0,0.0001978,2]
[359098432,1745706642489,-400.0,0.0001978,2]
[359098433,1745706642499,-833.17,0.0001978,2]
[359098434,1745706642510,-400.0,0.0001978,2]
[359098435,1745706642520,-400.0,0.0001978,2]
[359098436,1745706642529,-498.14,0.0001978,2]
[359098437,1745706642539,-400.0,0.0001978,2]
[359098438,1745706642549,-400.0,0.0001978,2]
[359098439,1745706642559,-521.76,0.0001978,2]
[359098440,1745706642569,-570.11,0.0001978,2]
[359098441,1745706642579,-696.85,0.0001978,2]
[359098442,1745706642588,-696.85,0.0001978,2]
[359098443,1745706642598,-400.0,0.0001978,2]
[359098444,1745706642608,-400.0,0.0001978,2]
[359098445,1745706642618,-400.0,0.0001978,2]
[359098446,1745706642628,-400.0,0.0001978,2]
[359098447,1745706642637,-182.89226889,0.0001978,2]
[359098448,1745706642647,-400.0,0.0001978,2]
[359098449,1745706642657,-400.0,0.0001978,2]
[359098450,1745706642667,-400.0,0.0001978,2]
[359098451,1745706642677,-400.0,0.0001978,2]
[359098452,1745706642687,-466.79,0.0001978,2]
[359098453,1745706642697,-610.84,0.0001978,2]
[359098454,1745706642707,-580.03,0.0001978,2]
[359098456,1745706642717,-627.68,0.0001978,2]
[359098458,1745706642730,-400.0,0.0001978,2]
[359098460,1745706642740,-543.38,0.0001978,2]
[359098462,1745706642750,-400.0,0.0001978,2]
[359098464,1745706642759,-400.0,0.0001978,2]
[359098466,1745706642769,-400.0,0.0001978,2]
[359098468,1745706642779,-500.0,0.0001978,2]
[359098470,1745706642790,-400.0,0.0001978,2]
[359098472,1745706642799,-400.0,0.0001978,2]
[359098474,1745706642809,-705.07,0.0001978,2]
[359098476,1745706642819,-400.0,0.0001978,2]
[359098479,1745706642831,-347.59625017,0.0001978,2]
[359098481,1745706642841,-400.0,0.0001978,2]
[359098483,1745706642851,-925.76,0.0001978,2]
[359098517,1745706642861,-400.0,0.0001978,2]
[359098520,1745706643110,-414.47,0.0001978,2]
[359098522,1745706643120,-451.31,0.0001978,2]
[359098524,1745706643130,-400.0,0.0001978,2]
[359098526,1745706643140,-400.0,0.0001978,2]
[359098528,1745706643150,-400.0,0.0001978,2]
[359098530,1745706643159,-400.0,0.0001978,2]
[359098532,1745706643170,-636.37,0.0001978,2]
[359098534,1745706643179,-400.0,0.0001978,2]
[359098536,1745706643189,-503.35852567,0.0001978,2]
[359098538,1745706643199,-500.0,0.0001978,2]
[359098540,1745706643209,-504.70218689,0.0001978,2]
[359098542,1745706643219,-714.99,0.0001978,2]
[359098544,1745706643230,-400.0,0.0001978,2]
[359098546,1745706643240,-182.35493135,0.0001978,2]
[359098548,1745706643249,-538.55,0.0001978,2]
[359098550,1745706643258,-1000.0,0.0001978,2]
[359098552,1745706643268,-400.0,0.0001978,2]
[359098554,1745706643278,-400.0,0.0001978,2]
[359098556,1745706643288,-400.0,0.0001978,2]
[359098558,1745706643298,-400.0,0.0001978,2]
[359098560,1745706643307,-1256.72,0.0001978,2]
[359098562,1745706643316,-400.0,0.0001978,2]
[359098564,1745706643326,-400.0,0.0001978,2]
[359098566,1745706643336,-464.67,0.0001978,2]
[359098568,1745706643346,-400.0,0.0001978,2]
[359098570,1745706643355,-400.0,0.0001978,2]
[359098572,1745706643364,-400.0,0.0001978,2]
[359098574,1745706643374,-400.0,0.0001978,2]
[359098576,1745706643383,-400.0,0.0001978,2]
[359098578,1745706643392,-400.0,0.0001978,2]
[359098580,1745706643402,-400.0,0.0001978,2]
[359098583,1745706643413,-400.0,0.0001978,2]
[359098585,1745706643422,-321.32684756,0.0001978,2]
[359098587,1745706643432,-400.0,0.0001978,2]
[359098589,1745706643441,-291.7918682,0.0001978,2]
[359098591,1745706643452,-400.0,0.0001978,2]
[359098593,1745706643461,-400.0,0.0001978,2]
[359098595,1745706643470,-400.0,0.0001978,2]
[359098597,1745706643480,-549.88,0.0001978,2]
[359098599,1745706643490,-400.0,0.0001978,2]
[359098601,1745706643500,-400.0,0.0001978,2]
[359098603,1745706643509,-203.5320357,0.0001978,2]
[359098605,1745706643519,-400.0,0.0001978,2]
[359098607,1745706643528,-400.0,0.0001978,2]
[359098609,1745706643537,-400.0,0.0001978,2]
[359098611,1745706643547,-400.0,0.0001978,2]
[359098613,1745706643556,-400.0,0.0001978,2]
[359098615,1745706643566,-400.0,0.0001978,2]
[359098617,1745706643575,-400.0,0.0001978,2]
[359098619,1745706643585,-400.0,0.0001978,2]
[359098621,1745706643595,-563.3,0.0001978,2]
[359098623,1745706643604,-400.0,0.0001978,2]
[359098625,1745706643614,-400.0,0.0001978,2]
[359098627,1745706643625,-293.62364312,0.0001978,2]
[359098629,1745706643635,-484.74,0.0001978,2]
[359098631,1745706643645,-466.25,0.0001978,2]
[359098633,1745706643654,-458.03127712,0.0001978,2]
[359098635,1745706643663,-336.44920315,0.0001978,2]
[359098637,1745706643673,-400.0,0.0001978,2]
[359098639,1745706643683,-1285.13,0.0001978,2]
[359098641,1745706643692,-500.0,0.0001978,2]
[359098643,1745706643703,-400.0,0.0001978,2]
[359098645,1745706643712,-400.0,0.0001978,2]
[359098647,1745706643722,-443.14,0.0001978,2]
[359098649,1745706643733,-493.93,0.0001978,2]
[359098651,1745706643742,-400.0,0.0001978,2]
[359098653,1745706643752,-400.0,0.0001978,2]
[359098655,1745706643761,-400.0,0.0001978,2]
[359098657,1745706643771,-400.0,0.0001978,2]
[359098659,1745706643781,-428.44,0.0001978,2]
[359098661,1745706643790,-400.0,0.0001978,2]
[359098663,1745706643799,-400.0,0.0001978,2]
[359098665,1745706643809,-629.38,0.0001978,2]
[359098667,1745706643819,-400.0,0.0001978,2]
[359098668,1745706643828,-500.0,0.0001978,2]
[359098669,1745706643837,-400.0,0.0001978,2]
[359098670,1745706643847,-400.0,0.0001978,2]
[359098671,1745706643856,-543.04,0.0001978,2]
[359098672,1745706643866,-696.72,0.0001978,2]
[359098673,1745706643876,-400.0,0.0001978,2]
[359098675,1745706643885,-400.0,0.0001978,2]
[359098677,1745706643895,-500.0,0.0001978,2]
[359098680,1745706643907,-400.0,0.0001978,2]
[359098682,1745706643918,-400.0,0.0001978,2]
[359098683,1745706643928,-583.09,0.0001978,2]
[359098686,1745706643939,-400.0,0.0001978,2]
[359098688,1745706643949,-493.67,0.0001978,2]
[359098690,1745706643959,-428.01,0.0001978,2]
[359098692,1745706643969,-443.9,0.0001978,2]
[359098694,1745706643979,-400.0,0.0001978,2]
[359098696,1745706643992,-400.0,0.0001978,2]
[359098698,1745706644001,-400.0,0.0001978,2]
[359098700,1745706644011,-400.0,0.0001978,2]
[359098702,1745706644020,-400.0,0.0001978,2]
[359098704,1745706644029,-663.66,0.0001978,2]
[359098706,1745706644039,-150.50202754,0.0001978,2]
[359098708,1745706644048,-500.0,0.0001978,2]
[359098710,1745706644058,-400.0,0.0001978,2]
[359098712,1745706644067,-400.0,0.0001978,2]
[359098714,1745706644077,-400.0,0.0001978,2]
[359098715,1745706644086,-483.62,0.0001978,2]
[359098716,1745706644096,-400.0,0.0001978,2]
[359098717,1745706644106,-400.0,0.0001978,2]
[359098718,1745706644116,-400.0,0.0001978,2]
[359098719,1745706644126,-400.0,0.0001978,2]
[359098720,1745706644135,-400.0,0.0001978,2]
[359098721,1745706644145,-400.0,0.0001978,2]
[359098722,1745706644154,-400.0,0.0001978,2]
[359098723,1745706644164,-641.22,0.0001978,2]
[359098724,1745706644174,-400.0,0.0001978,2]
[359098725,1745706644183,-400.0,0.0001978,2]
[359098726,1745706644192,-400.0,0.0001978,2]
[359098727,1745706644202,-400.0,0.0001978,2]
[359098728,1745706644212,-400.0,0.0001978,2]
[359098730,1745706644222,-400.0,0.0001978,2]
[359098732,1745706644232,-539.97,0.0001978,2]
[359098734,1745706644241,-400.0,0.0001978,2]
[359098736,1745706644251,-400.0,0.0001978,2]
[359098738,1745706644260,-400.0,0.0001978,2]
[359098740,1745706644270,-337.56692072,0.0001978,2]
[359098742,1745706644279,-2784.41,0.0001978,2]
[359098744,1745706644289,-400.0,0.0001978,2]
[359098746,1745706644298,-493.76,0.0001978,2]
[359098748,1745706644308,-400.0,0.0001978,2]
[359098750,1745706644318,-693.18,0.0001978,2]
[359098752,1745706644327,-400.0,0.0001978,2]
[359098754,1745706644338,-400.0,0.0001978,2]
[359098756,1745706644348,-400.0,0.0001978,2]
[359098758,1745706644357,-400.0,0.0001978,2]
[359098760,1745706644367,-526.98,0.0001978,2]
[359098762,1745706644376,-400.0,0.0001978,2]
[359098764,1745706644385,-400.0,0.0001978,2]
[359098766,1745706644394,-400.0,0.0001978,2]
[359098768,1745706644404,-400.0,0.0001978,2]
[359098770,1745706644414,-412.33,0.0001978,2]
[359098772,1745706644424,-400.0,0.0001978,2]
[359098774,1745706644433,-289.85545901,0.0001978,2]
[359098776,1745706644443,-500.0,0.0001978,2]
[359098778,1745706644452,-451.32,0.0001978,2]
[359098780,1745706644462,-584.33,0.0001978,2]
[359098782,1745706644472,-400.0,0.0001978,2]
[359098784,1745706644482,-400.0,0.0001978,2]
[359098786,1745706644492,-400.0,0.0001978,2]
[359098788,1745706644501,-481.88986859,0.0001978,2]
[359098790,1745706644511,-400.0,0.0001978,2]
[359098792,1745706644521,-400.0,0.0001978,2]
[359098794,1745706644531,-400.0,0.0001978,2]
[359098796,1745706644541,-400.0,0.0001978,2]
[359098798,1745706644550,-400.0,0.0001978,2]
[359098800,1745706644560,-400.0,0.0001978,2]
[359098803,1745706644569,-400.0,0.0001978,2]
[359098805,1745706644579,-400.0,0.0001978,2]
[359098806,1745706644588,-400.0,0.0001978,2]
[359098809,1745706644598,-400.0,0.0001978,2]
[359098811,1745706644608,-501.42725082,0.0001978,2]
[359098813,1745706644617,-501.9982147,0.0001978,2]
[359098815,1745706644627,-507.44276826,0.0001978,2]